Workbook

Sheet Notes
A1: Eleve | B1: Matiere | C1: Note | D1: Date | E1: Trim | F1: coefficient | G1: Note_Coeff | H1: Note cum | I1: Commentaires
A2: Sandrine DUPONT | B2: Physique | C2: 5.50 | D2: 2023-09-01 | E2: =IF(AND(MONTH(D2)>=4,MONTH(D2)<7),3,IF(AND(MONTH(D2)>=1,MONTH(D2)<4),2,1)) -> 1 | F2: 0.2 | G2: =F2*C2 -> 1.10 | H2: =G2 -> 1.10
A3: Simon DUPONT | B3: Physique | C3: 14.30 | D3: 2023-09-01 | E3: 1 | F3: 1.0 | G3: 14.30 | H3: =G3+H2 -> 15.40
A4: Luc DUPONT | B4: Chimie | C4: 12.10 | D4: 2023-09-02 | E4: 1 | F4: 0.4 | G4: 4.84 | H4: =G4+H3 -> 20.24
A5: Luc DUPONT | B5: Hist | C5: 15.40 | D5: 2023-09-02 | E5: 1 | F5: 0.4 | G5: 6.16 | H5: 26.40
A6: Sandrine DUPONT | B6: Chimie | C6: 5.50 | D6: 2023-09-02 | E6: 1 | F6: 0.7 | G6: 3.85 | H6: 30.25
A7: Sandrine DUPONT | B7: Geo | C7: 10.00 | D7: 2023-09-02 | E7: 1 | F7: 1.0 | G7: 10.00 | H7: 40.25
A8: Yasmine DUPONT | B8: Chimie | C8: 18.00 | D8: 2023-09-02 | E8: 1 | F8: 0.4 | G8: 7.20 | H8: 47.45
A9: Yasmine DUPONT | B9: Hist | C9: 20.00 | D9: 2023-09-02 | E9: 1 | F9: 0.4 | G9: 8.00 | H9: 55.45
A10: Luc DUPONT | B10: Français | C10: 7.70 | D10: 2023-09-03 | E10: =IF(AND(MONTH(D10)>=4,MONTH(D10)<7),3,IF(AND(MONTH(D10)>=1,MONTH(D10)<4),2,1)) -> 1 | F10: 0.5 | G10: 3.85 | H10: 59.30
A11: Luc DUPONT | B11: Hist | C11: 17.60 | D11: 2023-09-03 | E11: 1 | F11: 1.0 | G11: 17.60 | H11: 76.90
A12: Luc DUPONT | B12: Hist | C12: 12.10 | D12: 2023-09-03 | E12: 1 | F12: 0.4 | G12: 4.84 | H12: 81.74
A13: Nora DUPONT | B13: Geo | C13: 5.50 | D13: 2023-09-03 | E13: 1 | F13: 1.0 | G13: 5.50 | H13: 87.24
A14: Nora DUPONT | B14: Maths | C14: 11.00 | D14: 2023-09-03 | E14: 1 | F14: 0.5 | G14: 5.50 | H14: 92.74
A15: Pierre DUPONT | B15: Physique | C15: 7.70 | D15: 2023-09-03 | E15: 1 | F15: 0.8 | G15: 6.16 | H15: 98.90
A16: Sandrine DUPONT | B16: Geo | C16: 12.00 | D16: 2023-09-03 | E16: 1 | F16: 0.7 | G16: 8.40 | H16: 107.30
A17: Sandrine DUPONT | B17: Hist | C17: 9.90 | D17: 2023-09-03 | E17: 1 | F17: 0.8 | G17: 7.92 | H17: 115.22
A18: Simon DUPONT | B18: Physique | C18: 20.00 | D18: 2023-09-03 | E18: 1 | F18: 0.1 | G18: 2.00 | H18: 117.22
A19: Yasmine DUPONT | B19: Français | C19: 16.00 | D19: 2023-09-03 | E19: 1 | F19: 0.5 | G19: 8.00 | H19: 125.22
A20: Yasmine DUPONT | B20: Hist | C20: 10.00 | D20: 2023-09-03 | E20: 1 | F20: 1.0 | G20: 10.00 | H20: 135.22
A21: Yasmine DUPONT | B21: Hist | C21: 19.00 | D21: 2023-09-03 | E21: 1 | F21: 0.4 | G21: 7.60 | H21: 142.82
A22: Nora DUPONT | B22: Chimie | C22: 12.10 | D22: 2023-09-04 | E22: =IF(AND(MONTH(D22)>=4,MONTH(D22)<7),3,IF(AND(MONTH(D22)>=1,MONTH(D22)<4),2,1)) -> 1 | F22: 0.1 | G22: 1.21 | H22: 144.03
A23: Pierre DUPONT | B23: Maths | C23: 17.60 | D23: 2023-09-04 | E23: 1 | F23: 0.7 | G23: 12.32 | H23: 156.35
A24: Sandrine DUPONT | B24: Physique | C24: 11.00 | D24: 2023-09-04 | E24: 1 | F24: 0.1 | G24: 1.10 | H24: 157.45
A25: Simon DUPONT | B25: Maths | C25: 15.40 | D25: 2023-09-05 | E25: 1 | F25: 0.5 | G25: 7.70 | H25: 165.15
A26: Pierre DUPONT | B26: Maths | C26: 5.50 | D26: 2023-09-06 | E26: 1 | F26: 1.0 | G26: 5.50 | H26: 170.65
A27: Simon DUPONT | B27: Anglais | C27: 15.40 | D27: 2023-09-06 | E27: 1 | F27: 0.3 | G27: 4.62 | H27: 175.27
A28: Simon DUPONT | B28: Chimie | C28: 8.80 | D28: 2023-09-06 | E28: 1 | F28: 0.5 | G28: 4.40 | H28: 179.67
A29: Simon DUPONT | B29: Maths | C29: 6.60 | D29: 2023-09-06 | E29: 1 | F29: 0.7 | G29: 4.62 | H29: 184.29
A30: Nora DUPONT | B30: Anglais | C30: 5.50 | D30: 2023-09-07 | E30: 1 | F30: 0.8 | G30: 4.40 | H30: 188.69
A31: Nora DUPONT | B31: Chimie | C31: 13.20 | D31: 2023-09-07 | E31: 1 | F31: 1.0 | G31: 13.20 | H31: 201.89
A32: Nora DUPONT | B32: Français | C32: 13.20 | D32: 2023-09-07 | E32: 1 | F32: 1.0 | G32: 13.20 | H32: 215.09
A33: Sandrine DUPONT | B33: Maths | C33: 12.10 | D33: 2023-09-07 | E33: 1 | F33: 0.2 | G33: 2.42 | H33: 217.51
A34: Simon DUPONT | B34: Chimie | C34: 7.70 | D34: 2023-09-07 | E34: 1 | F34: 0.9 | G34: 6.93 | H34: 224.44
A35: Luc DUPONT | B35: Anglais | C35: 14.30 | D35: 2023-09-08 | E35: 1 | F35: 0.6 | G35: 8.58 | H35: 233.02
A36: Nora DUPONT | B36: Physique | C36: 8.80 | D36: 2023-09-08 | E36: 1 | F36: 1.0 | G36: 8.80 | H36: 241.82
A37: Yasmine DUPONT | B37: Anglais | C37: 17.00 | D37: 2023-09-08 | E37: 1 | F37: 0.6 | G37: 10.20 | H37: 252.02
A38: Nora DUPONT | B38: SVT | C38: 8.80 | D38: 2023-09-09 | E38: =IF(AND(MONTH(D38)>=4,MONTH(D38)<7),3,IF(AND(MONTH(D38)>=1,MONTH(D38)<4),2,1)) -> 1 | F38: 0.5 | G38: 4.40 | H38: 256.42
A39: Nora DUPONT | B39: Geo | C39: 15.40 | D39: 2023-09-10 | E39: 1 | F39: 0.5 | G39: 7.70 | H39: 264.12
A40: Sandrine DUPONT | B40: Chimie | C40: 12.10 | D40: 2023-09-10 | E40: 1 | F40: 0.5 | G40: 6.05 | H40: 270.17
A41: Luc DUPONT | B41: Anglais | C41: 8.80 | D41: 2023-09-12 | E41: 1 | F41: 1.0 | G41: 8.80 | H41: 278.97
A42: Luc DUPONT | B42: Chimie | C42: 11.00 | D42: 2023-09-12 | E42: 1 | F42: 0.9 | G42: 9.90 | H42: 288.87
A43: Nora DUPONT | B43: Geo | C43: 19.80 | D43: 2023-09-12 | E43: 1 | F43: 0.7 | G43: 13.86 | H43: 302.73
A44: Nora DUPONT | B44: Sport | C44: 15.40 | D44: 2023-09-12 | E44: 1 | F44: 0.7 | G44: 10.78 | H44: 313.51
A45: Sandrine DUPONT | B45: Anglais | C45: 9.90 | D45: 2023-09-12 | E45: 1 | F45: 0.5 | G45: 4.95 | H45: 318.46
A46: Sandrine DUPONT | B46: Maths | C46: 7.70 | D46: 2023-09-12 | E46: 1 | F46: 0.5 | G46: 3.85 | H46: 322.31
A47: Sandrine DUPONT | B47: Maths | C47: 11.00 | D47: 2023-09-12 | E47: 1 | F47: 0.5 | G47: 5.50 | H47: 327.81
A48: Yasmine DUPONT | B48: Anglais | C48: 16.00 | D48: 2023-09-12 | E48: 1 | F48: 1.0 | G48: 16.00 | H48: 343.81
A49: Yasmine DUPONT | B49: Chimie | C49: 20.00 | D49: 2023-09-12 | E49: 1 | F49: 0.9 | G49: 18.00 | H49: 361.81
A50: Nora DUPONT | B50: Français | C50: 6.60 | D50: 2023-09-13 | E50: =IF(AND(MONTH(D50)>=4,MONTH(D50)<7),3,IF(AND(MONTH(D50)>=1,MONTH(D50)<4),2,1)) -> 1 | F50: 0.2 | G50: 1.32 | H50: 363.13
A51: Nora DUPONT | B51: Physique | C51: 14.30 | D51: 2023-09-13 | E51: 1 | F51: 1.0 | G51: 14.30 | H51: 377.43
A52: Simon DUPONT | B52: Hist | C52: 17.60 | D52: 2023-09-13 | E52: 1 | F52: 0.5 | G52: 8.80 | H52: 386.23
A53: Pierre DUPONT | B53: Anglais | C53: 19.80 | D53: 2023-09-14 | E53: 1 | F53: 0.1 | G53: 1.98 | H53: 388.21
A54: Sandrine DUPONT | B54: Anglais | C54: 11.00 | D54: 2023-09-14 | E54: 1 | F54: 0.6 | G54: 6.60 | H54: 394.81
A55: Sandrine DUPONT | B55: Sport | C55: 13.00 | D55: 2023-09-14 | E55: 1 | F55: 0.7 | G55: 9.10 | H55: 403.91
A56: Sandrine DUPONT | B56: SVT | C56: 15.50 | D56: 2023-09-14 | E56: 1 | F56: 0.5 | G56: 7.75 | H56: 411.66
A57: Simon DUPONT | B57: Sport | C57: 8.80 | D57: 2023-09-14 | E57: 1 | F57: 1.0 | G57: 8.80 | H57: 420.46
A58: Pierre DUPONT | B58: Français | C58: 18.70 | D58: 2023-09-15 | E58: 1 | F58: 0.5 | G58: 9.35 | H58: 429.81
A59: Pierre DUPONT | B59: Geo | C59: 6.60 | D59: 2023-09-15 | E59: 1 | F59: 0.2 | G59: 1.32 | H59: 431.13
A60: Nora DUPONT | B60: Hist | C60: 11.00 | D60: 2023-09-16 | E60: 1 | F60: 0.5 | G60: 5.50 | H60: 436.63
A61: Luc DUPONT | B61: Geo | C61: 13.20 | D61: 2023-09-18 | E61: 1 | F61: 0.7 | G61: 9.24 | H61: 445.87
A62: Luc DUPONT | B62: Hist | C62: 20.00 | D62: 2023-09-18 | E62: 1 | F62: 0.1 | G62: 2.00 | H62: 447.87
A63: Sandrine DUPONT | B63: Geo | C63: 11.00 | D63: 2023-09-18 | E63: 1 | F63: 0.3 | G63: 3.30 | H63: 451.17
A64: Simon DUPONT | B64: SVT | C64: 18.70 | D64: 2023-09-18 | E64: 1 | F64: 0.7 | G64: 13.09 | H64: 464.26
A65: Simon DUPONT | B65: SVT | C65: 15.40 | D65: 2023-09-18 | E65: 1 | F65: 0.1 | G65: 1.54 | H65: 465.80
A66: Yasmine DUPONT | B66: Geo | C66: 11.00 | D66: 2023-09-18 | E66: 1 | F66: 0.7 | G66: =F66*C66 -> 7.70 | H66: 473.50
A67: Yasmine DUPONT | B67: Hist | C67: 13.00 | D67: 2023-09-18 | E67: 1 | F67: 0.1 | G67: 1.30 | H67: 474.80
A68: Pierre DUPONT | B68: Geo | C68: 9.90 | D68: 2023-09-19 | E68: =IF(AND(MONTH(D68)>=4,MONTH(D68)<7),3,IF(AND(MONTH(D68)>=1,MONTH(D68)<4),2,1)) -> 1 | F68: 0.1 | G68: 0.99 | H68: =G68+H67 -> 475.79
A69: Sandrine DUPONT | B69: Geo | C69: 6.60 | D69: 2023-09-19 | E69: 1 | F69: 0.2 | G69: 1.32 | H69: 477.11
A70: Simon DUPONT | B70: Maths | C70: 12.10 | D70: 2023-09-19 | E70: 1 | F70: 0.7 | G70: 8.47 | H70: 485.58
A71: Nora DUPONT | B71: Français | C71: 9.90 | D71: 2023-09-20 | E71: 1 | F71: 0.7 | G71: 6.93 | H71: 492.51
A72: Luc DUPONT | B72: Anglais | C72: 20.00 | D72: 2023-09-21 | E72: 1 | F72: 0.3 | G72: 6.00 | H72: 498.51
A73: Luc DUPONT | B73: Chimie | C73: 13.20 | D73: 2023-09-21 | E73: 1 | F73: 0.5 | G73: 6.60 | H73: 505.11
A74: Luc DUPONT | B74: Maths | C74: 19.80 | D74: 2023-09-21 | E74: 1 | F74: 0.3 | G74: 5.94 | H74: 511.05
A75: Nora DUPONT | B75: Geo | C75: 20.00 | D75: 2023-09-21 | E75: 1 | F75: 0.5 | G75: 10.00 | H75: 521.05
A76: Nora DUPONT | B76: Geo | C76: 19.80 | D76: 2023-09-21 | E76: 1 | F76: 0.8 | G76: 15.84 | H76: 536.89
A77: Pierre DUPONT | B77: SVT | C77: 14.30 | D77: 2023-09-21 | E77: 1 | F77: 0.1 | G77: 1.43 | H77: 538.32
A78: Simon DUPONT | B78: Anglais | C78: 18.70 | D78: 2023-09-21 | E78: 1 | F78: 0.1 | G78: 1.87 | H78: 540.19
A79: Simon DUPONT | B79: Hist | C79: 5.50 | D79: 2023-09-21 | E79: 1 | F79: 0.2 | G79: 1.10 | H79: 541.29
A80: Yasmine DUPONT | B80: Anglais | C80: 20.00 | D80: 2023-09-21 | E80: 1 | F80: 0.3 | G80: 6.00 | H80: 547.29
A81: Yasmine DUPONT | B81: Chimie | C81: 14.00 | D81: 2023-09-21 | E81: 1 | F81: 0.5 | G81: 7.00 | H81: 554.29
A82: Yasmine DUPONT | B82: Maths | C82: 15.00 | D82: 2023-09-21 | E82: 1 | F82: 0.3 | G82: 4.50 | H82: 558.79
A83: Luc DUPONT | B83: Anglais | C83: 12.10 | D83: 2023-09-22 | E83: =IF(AND(MONTH(D83)>=4,MONTH(D83)<7),3,IF(AND(MONTH(D83)>=1,MONTH(D83)<4),2,1)) -> 1 | F83: 0.7 | G83: 8.47 | H83: 567.26
A84: Luc DUPONT | B84: Geo | C84: 6.60 | D84: 2023-09-22 | E84: 1 | F84: 0.5 | G84: 3.30 | H84: 570.56
A85: Nora DUPONT | B85: Anglais | C85: 12.10 | D85: 2023-09-22 | E85: 1 | F85: 0.6 | G85: 7.26 | H85: 577.82
A86: Sandrine DUPONT | B86: Français | C86: 13.20 | D86: 2023-09-22 | E86: 1 | F86: 0.7 | G86: 9.24 | H86: 587.06
A87: Sandrine DUPONT | B87: Maths | C87: 8.80 | D87: 2023-09-22 | E87: 1 | F87: 0.3 | G87: 2.64 | H87: 589.70
A88: Simon DUPONT | B88: Anglais | C88: 12.10 | D88: 2023-09-22 | E88: 1 | F88: 1.0 | G88: 12.10 | H88: 601.80
A89: Yasmine DUPONT | B89: Anglais | C89: 11.00 | D89: 2023-09-22 | E89: 1 | F89: 0.7 | G89: 7.70 | H89: 609.50
A90: Yasmine DUPONT | B90: Geo | C90: 10.00 | D90: 2023-09-22 | E90: 1 | F90: 0.5 | G90: 5.00 | H90: 614.50
A91: Luc DUPONT | B91: Anglais | C91: 13.20 | D91: 2023-09-23 | E91: =IF(AND(MONTH(D91)>=4,MONTH(D91)<7),3,IF(AND(MONTH(D91)>=1,MONTH(D91)<4),2,1)) -> 1 | F91: 0.9 | G91: 11.88 | H91: 626.38
A92: Sandrine DUPONT | B92: SVT | C92: 14.30 | D92: 2023-09-23 | E92: =IF(AND(MONTH(D92)>=4,MONTH(D92)<7),3,IF(AND(MONTH(D92)>=1,MONTH(D92)<4),2,1)) -> 1 | F92: 0.1 | G92: 1.43 | H92: 627.81
A93: Yasmine DUPONT | B93: Anglais | C93: 13.00 | D93: 2023-09-23 | E93: 1 | F93: 0.9 | G93: 11.70 | H93: 639.51
A94: Pierre DUPONT | B94: Chimie | C94: 18.70 | D94: 2023-09-24 | E94: =IF(AND(MONTH(D94)>=4,MONTH(D94)<7),3,IF(AND(MONTH(D94)>=1,MONTH(D94)<4),2,1)) -> 1 | F94: 0.2 | G94: 3.74 | H94: 643.25
A95: Pierre DUPONT | B95: Hist | C95: 7.70 | D95: 2023-09-24 | E95: 1 | F95: 0.2 | G95: 1.54 | H95: 644.79
A96: Simon DUPONT | B96: Chimie | C96: 19.80 | D96: 2023-09-24 | E96: 1 | F96: 0.2 | G96: 3.96 | H96: 648.75
A97: Simon DUPONT | B97: Hist | C97: 7.70 | D97: 2023-09-24 | E97: 1 | F97: 0.5 | G97: 3.85 | H97: 652.60
A98: Simon DUPONT | B98: SVT | C98: 5.50 | D98: 2023-09-24 | E98: 1 | F98: 0.2 | G98: 1.10 | H98: 653.70
A99: Sandrine DUPONT | B99: SVT | C99: 12.10 | D99: 2023-09-25 | E99: 1 | F99: 0.2 | G99: 2.42 | H99: 656.12
A100: Simon DUPONT | B100: Français | C100: 5.50 | D100: 2023-09-25 | E100: 1 | F100: 0.1 | G100: 0.55 | H100: 656.67
A101: Simon DUPONT | B101: Geo | C101: 15.40 | D101: 2023-09-25 | E101: 1 | F101: 0.9 | G101: 13.86 | H101: 670.53
A102: Simon DUPONT | B102: Physique | C102: 19.80 | D102: 2023-09-25 | E102: 1 | F102: 0.7 | G102: 13.86 | H102: 684.39
A103: Luc DUPONT | B103: SVT | C103: 13.20 | D103: 2023-09-26 | E103: 1 | F103: 0.1 | G103: 1.32 | H103: 685.71
A104: Nora DUPONT | B104: Anglais | C104: 11.00 | D104: 2023-09-26 | E104: 1 | F104: 0.2 | G104: 2.20 | H104: 687.91
A105: Pierre DUPONT | B105: Anglais | C105: 17.60 | D105: 2023-09-26 | E105: 1 | F105: 0.9 | G105: 15.84 | H105: 703.75
A106: Pierre DUPONT | B106: Hist | C106: 20.00 | D106: 2023-09-26 | E106: 1 | F106: 1.0 | G106: 20.00 | H106: 723.75
A107: Pierre DUPONT | B107: Sport | C107: 15.40 | D107: 2023-09-26 | E107: 1 | F107: 0.7 | G107: 10.78 | H107: 734.53
A108: Pierre DUPONT | B108: SVT | C108: 13.20 | D108: 2023-09-26 | E108: 1 | F108: 0.5 | G108: 6.60 | H108: 741.13
A109: Sandrine DUPONT | B109: Français | C109: 15.00 | D109: 2023-09-26 | E109: 1 | F109: 1.0 | G109: 15.00 | H109: 756.13
A110: Simon DUPONT | B110: Physique | C110: 20.00 | D110: 2023-09-26 | E110: 1 | F110: 0.5 | G110: 10.00 | H110: 766.13
A111: Yasmine DUPONT | B111: SVT | C111: 11.00 | D111: 2023-09-26 | E111: 1 | F111: 0.1 | G111: 1.10 | H111: 767.23
A112: Pierre DUPONT | B112: Maths | C112: 17.60 | D112: 2023-09-27 | E112: =IF(AND(MONTH(D112)>=4,MONTH(D112)<7),3,IF(AND(MONTH(D112)>=1,MONTH(D112)<4),2,1)) -> 1 | F112: 0.5 | G112: 8.80 | H112: 776.03
A113: Sandrine DUPONT | B113: Hist | C113: 11.00 | D113: 2023-09-27 | E113: 1 | F113: 0.2 | G113: 2.20 | H113: 778.23
A114: Simon DUPONT | B114: Anglais | C114: 5.50 | D114: 2023-09-27 | E114: 1 | F114: 0.7 | G114: 3.85 | H114: 782.08
A115: Simon DUPONT | B115: Hist | C115: 7.70 | D115: 2023-09-27 | E115: 1 | F115: 0.3 | G115: 2.31 | H115: 784.39
A116: Simon DUPONT | B116: SVT | C116: 19.80 | D116: 2023-09-27 | E116: 1 | F116: 1.0 | G116: 19.80 | H116: 804.19
A117: Luc DUPONT | B117: Chimie | C117: 11.00 | D117: 2023-09-28 | E117: 1 | F117: 1.0 | G117: 11.00 | H117: 815.19
A118: Luc DUPONT | B118: Maths | C118: 20.00 | D118: 2023-09-28 | E118: 1 | F118: 0.1 | G118: 2.00 | H118: 817.19
A119: Nora DUPONT | B119: Chimie | C119: 20.00 | D119: 2023-09-28 | E119: 1 | F119: 0.5 | G119: 10.00 | H119: 827.19
A120: Nora DUPONT | B120: Chimie | C120: 20.00 | D120: 2023-09-28 | E120: 1 | F120: 0.6 | G120: 12.00 | H120: 839.19
A121: Sandrine DUPONT | B121: SVT | C121: 15.00 | D121: 2023-09-28 | E121: 1 | F121: 0.5 | G121: 7.50 | H121: 846.69
A122: Simon DUPONT | B122: Geo | C122: 15.40 | D122: 2023-09-28 | E122: 1 | F122: 0.8 | G122: 12.32 | H122: 859.01
A123: Yasmine DUPONT | B123: Chimie | C123: 13.00 | D123: 2023-09-28 | E123: 1 | F123: 1.0 | G123: 13.00 | H123: 872.01
A124: Yasmine DUPONT | B124: Maths | C124: 17.00 | D124: 2023-09-28 | E124: 1 | F124: 0.1 | G124: 1.70 | H124: 873.71
A125: Luc DUPONT | B125: Français | C125: 14.30 | D125: 2023-09-29 | E125: =IF(AND(MONTH(D125)>=4,MONTH(D125)<7),3,IF(AND(MONTH(D125)>=1,MONTH(D125)<4),2,1)) -> 1 | F125: 0.7 | G125: 10.01 | H125: 883.72
A126: Luc DUPONT | B126: Geo | C126: 19.80 | D126: 2023-09-29 | E126: =IF(AND(MONTH(D126)>=4,MONTH(D126)<7),3,IF(AND(MONTH(D126)>=1,MONTH(D126)<4),2,1)) -> 1 | F126: 0.4 | G126: 7.92 | H126: 891.64
A127: Luc DUPONT | B127: Physique | C127: 9.90 | D127: 2023-09-29 | E127: =IF(AND(MONTH(D127)>=4,MONTH(D127)<7),3,IF(AND(MONTH(D127)>=1,MONTH(D127)<4),2,1)) -> 1 | F127: 0.2 | G127: 1.98 | H127: 893.62
A128: Simon DUPONT | B128: Sport | C128: 19.80 | D128: 2023-09-29 | E128: =IF(AND(MONTH(D128)>=4,MONTH(D128)<7),3,IF(AND(MONTH(D128)>=1,MONTH(D128)<4),2,1)) -> 1 | F128: 0.9 | G128: 17.82 | H128: 911.44
A129: Yasmine DUPONT | B129: Français | C129: 10.00 | D129: 2023-09-29 | E129: 1 | F129: 0.7 | G129: 7.00 | H129: 918.44
A130: Yasmine DUPONT | B130: Geo | C130: 15.00 | D130: 2023-09-29 | E130: 1 | F130: 0.4 | G130: =F130*C130 -> 6.00 | H130: 924.44
A131: Yasmine DUPONT | B131: Physique | C131: 12.00 | D131: 2023-09-29 | E131: 1 | F131: 0.2 | G131: 2.40 | H131: 926.84
A132: Luc DUPONT | B132: Français | C132: 8.80 | D132: 2023-09-30 | E132: =IF(AND(MONTH(D132)>=4,MONTH(D132)<7),3,IF(AND(MONTH(D132)>=1,MONTH(D132)<4),2,1)) -> 1 | F132: 0.5 | G132: 4.40 | H132: =G132+H131 -> 931.24
A133: Luc DUPONT | B133: Geo | C133: 20.00 | D133: 2023-09-30 | E133: 1 | F133: 0.9 | G133: 18.00 | H133: 949.24
A134: Nora DUPONT | B134: Anglais | C134: 15.40 | D134: 2023-09-30 | E134: 1 | F134: 0.6 | G134: 9.24 | H134: 958.48
A135: Pierre DUPONT | B135: Maths | C135: 9.90 | D135: 2023-09-30 | E135: 1 | F135: 1.0 | G135: 9.90 | H135: 968.38
A136: Sandrine DUPONT | B136: Physique | C136: 17.00 | D136: 2023-09-30 | E136: 1 | F136: 0.7 | G136: 11.90 | H136: 980.28
A137: Sandrine DUPONT | B137: Physique | C137: 7.70 | D137: 2023-09-30 | E137: 1 | F137: 0.8 | G137: 6.16 | H137: 986.44
A138: Simon DUPONT | B138: Chimie | C138: 6.60 | D138: 2023-09-30 | E138: 1 | F138: 0.5 | G138: 3.30 | H138: 989.74
A139: Yasmine DUPONT | B139: Français | C139: 18.00 | D139: 2023-09-30 | E139: 1 | F139: 0.5 | G139: 9.00 | H139: 998.74
A140: Yasmine DUPONT | B140: Geo | C140: 12.00 | D140: 2023-09-30 | E140: 1 | F140: 0.9 | G140: 10.80 | H140: 1009.54
A141: Luc DUPONT | B141: Français | C141: 12.10 | D141: 2023-10-01 | E141: =IF(AND(MONTH(D141)>=4,MONTH(D141)<7),3,IF(AND(MONTH(D141)>=1,MONTH(D141)<4),2,1)) -> 1 | F141: 1.0 | G141: 12.10 | H141: 1021.64
A142: Yasmine DUPONT | B142: Français | C142: 13.00 | D142: 2023-10-01 | E142: 1 | F142: 1.0 | G142: 13.00 | H142: 1034.64
A143: Luc DUPONT | B143: Chimie | C143: 13.20 | D143: 2023-10-03 | E143: =IF(AND(MONTH(D143)>=4,MONTH(D143)<7),3,IF(AND(MONTH(D143)>=1,MONTH(D143)<4),2,1)) -> 1 | F143: 0.7 | G143: 9.24 | H143: 1043.88
A144: Pierre DUPONT | B144: SVT | C144: 17.60 | D144: 2023-10-03 | E144: =IF(AND(MONTH(D144)>=4,MONTH(D144)<7),3,IF(AND(MONTH(D144)>=1,MONTH(D144)<4),2,1)) -> 1 | F144: 0.6 | G144: 10.56 | H144: 1054.44
A145: Yasmine DUPONT | B145: Chimie | C145: 10.00 | D145: 2023-10-03 | E145: 1 | F145: 0.7 | G145: 7.00 | H145: 1061.44
A146: Luc DUPONT | B146: Maths | C146: 16.50 | D146: 2023-10-04 | E146: =IF(AND(MONTH(D146)>=4,MONTH(D146)<7),3,IF(AND(MONTH(D146)>=1,MONTH(D146)<4),2,1)) -> 1 | F146: 0.5 | G146: 8.25 | H146: 1069.69
A147: Nora DUPONT | B147: Hist | C147: 6.60 | D147: 2023-10-04 | E147: =IF(AND(MONTH(D147)>=4,MONTH(D147)<7),3,IF(AND(MONTH(D147)>=1,MONTH(D147)<4),2,1)) -> 1 | F147: 0.1 | G147: 0.66 | H147: 1070.35
A148: Pierre DUPONT | B148: Anglais | C148: 19.80 | D148: 2023-10-04 | E148: =IF(AND(MONTH(D148)>=4,MONTH(D148)<7),3,IF(AND(MONTH(D148)>=1,MONTH(D148)<4),2,1)) -> 1 | F148: 0.1 | G148: 1.98 | H148: 1072.33
A149: Yasmine DUPONT | B149: Maths | C149: 19.00 | D149: 2023-10-04 | E149: 1 | F149: 0.5 | G149: 9.50 | H149: 1081.83
A150: Nora DUPONT | B150: Anglais | C150: 7.70 | D150: 2023-10-05 | E150: =IF(AND(MONTH(D150)>=4,MONTH(D150)<7),3,IF(AND(MONTH(D150)>=1,MONTH(D150)<4),2,1)) -> 1 | F150: 0.3 | G150: 2.31 | H150: 1084.14
A151: Pierre DUPONT | B151: Anglais | C151: 20.00 | D151: 2023-10-05 | E151: 1 | F151: 0.4 | G151: 8.00 | H151: 1092.14
A152: Pierre DUPONT | B152: Hist | C152: 20.00 | D152: 2023-10-05 | E152: 1 | F152: 0.1 | G152: 2.00 | H152: 1094.14
A153: Simon DUPONT | B153: Français | C153: 6.60 | D153: 2023-10-05 | E153: 1 | F153: 1.0 | G153: 6.60 | H153: 1100.74
A154: Simon DUPONT | B154: SVT | C154: 16.50 | D154: 2023-10-05 | E154: 1 | F154: 0.5 | G154: 8.25 | H154: 1108.99
A155: Simon DUPONT | B155: SVT | C155: 11.00 | D155: 2023-10-05 | E155: 1 | F155: 0.3 | G155: 3.30 | H155: 1112.29
A156: Nora DUPONT | B156: Français | C156: 15.40 | D156: 2023-10-07 | E156: 1 | F156: 0.5 | G156: 7.70 | H156: 1119.99
A157: Pierre DUPONT | B157: Maths | C157: 15.40 | D157: 2023-10-07 | E157: 1 | F157: 0.1 | G157: 1.54 | H157: 1121.53
A158: Pierre DUPONT | B158: Physique | C158: 14.30 | D158: 2023-10-07 | E158: 1 | F158: 0.8 | G158: 11.44 | H158: 1132.97
A159: Sandrine DUPONT | B159: Geo | C159: 18.00 | D159: 2023-10-07 | E159: 1 | F159: 0.1 | G159: 1.80 | H159: 1134.77
A160: Simon DUPONT | B160: Français | C160: 15.40 | D160: 2023-10-07 | E160: 1 | F160: 0.9 | G160: 13.86 | H160: 1148.63
A161: Luc DUPONT | B161: Geo | C161: 16.50 | D161: 2023-10-08 | E161: 1 | F161: 0.2 | G161: 3.30 | H161: 1151.93
A162: Nora DUPONT | B162: Hist | C162: 11.00 | D162: 2023-10-08 | E162: 1 | F162: 0.9 | G162: 9.90 | H162: 1161.83
A163: Nora DUPONT | B163: Maths | C163: 13.20 | D163: 2023-10-08 | E163: 1 | F163: 0.1 | G163: 1.32 | H163: 1163.15
A164: Sandrine DUPONT | B164: Anglais | C164: 12.10 | D164: 2023-10-08 | E164: 1 | F164: 0.2 | G164: 2.42 | H164: 1165.57
A165: Sandrine DUPONT | B165: Français | C165: 17.60 | D165: 2023-10-08 | E165: 1 | F165: 0.4 | G165: 7.04 | H165: 1172.61
A166: Sandrine DUPONT | B166: Geo | C166: 9.90 | D166: 2023-10-08 | E166: 1 | F166: 0.5 | G166: 4.95 | H166: 1177.56
A167: Yasmine DUPONT | B167: Geo | C167: 14.00 | D167: 2023-10-08 | E167: 1 | F167: 0.2 | G167: 2.80 | H167: 1180.36
A168: Luc DUPONT | B168: Physique | C168: 19.80 | D168: 2023-10-09 | E168: =IF(AND(MONTH(D168)>=4,MONTH(D168)<7),3,IF(AND(MONTH(D168)>=1,MONTH(D168)<4),2,1)) -> 1 | F168: 0.7 | G168: 13.86 | H168: 1194.22
A169: Pierre DUPONT | B169: Maths | C169: 13.20 | D169: 2023-10-09 | E169: =IF(AND(MONTH(D169)>=4,MONTH(D169)<7),3,IF(AND(MONTH(D169)>=1,MONTH(D169)<4),2,1)) -> 1 | F169: 0.6 | G169: 7.92 | H169: 1202.14
A170: Pierre DUPONT | B170: Physique | C170: 7.70 | D170: 2023-10-09 | E170: =IF(AND(MONTH(D170)>=4,MONTH(D170)<7),3,IF(AND(MONTH(D170)>=1,MONTH(D170)<4),2,1)) -> 1 | F170: 0.5 | G170: 3.85 | H170: 1205.99
A171: Yasmine DUPONT | B171: Physique | C171: 12.00 | D171: 2023-10-09 | E171: 1 | F171: 0.7 | G171: 8.40 | H171: 1214.39
A172: Sandrine DUPONT | B172: SVT | C172: 17.60 | D172: 2023-10-10 | E172: =IF(AND(MONTH(D172)>=4,MONTH(D172)<7),3,IF(AND(MONTH(D172)>=1,MONTH(D172)<4),2,1)) -> 1 | F172: 0.1 | G172: 1.76 | H172: 1216.15
A173: Luc DUPONT | B173: Anglais | C173: 8.80 | D173: 2023-10-11 | E173: =IF(AND(MONTH(D173)>=4,MONTH(D173)<7),3,IF(AND(MONTH(D173)>=1,MONTH(D173)<4),2,1)) -> 1 | F173: 0.4 | G173: 3.52 | H173: 1219.67
A174: Simon DUPONT | B174: Chimie | C174: 16.50 | D174: 2023-10-11 | E174: =IF(AND(MONTH(D174)>=4,MONTH(D174)<7),3,IF(AND(MONTH(D174)>=1,MONTH(D174)<4),2,1)) -> 1 | F174: 0.5 | G174: 8.25 | H174: 1227.92
A175: Yasmine DUPONT | B175: Anglais | C175: 13.00 | D175: 2023-10-11 | E175: 1 | F175: 0.4 | G175: 5.20 | H175: 1233.12
A176: Luc DUPONT | B176: SVT | C176: 6.60 | D176: 2023-10-12 | E176: =IF(AND(MONTH(D176)>=4,MONTH(D176)<7),3,IF(AND(MONTH(D176)>=1,MONTH(D176)<4),2,1)) -> 1 | F176: 0.4 | G176: 2.64 | H176: 1235.76
A177: Pierre DUPONT | B177: Geo | C177: 18.70 | D177: 2023-10-12 | E177: =IF(AND(MONTH(D177)>=4,MONTH(D177)<7),3,IF(AND(MONTH(D177)>=1,MONTH(D177)<4),2,1)) -> 1 | F177: 0.5 | G177: 9.35 | H177: 1245.11
A178: Pierre DUPONT | B178: Geo | C178: 9.90 | D178: 2023-10-12 | E178: =IF(AND(MONTH(D178)>=4,MONTH(D178)<7),3,IF(AND(MONTH(D178)>=1,MONTH(D178)<4),2,1)) -> 1 | F178: 0.5 | G178: 4.95 | H178: 1250.06
A179: Yasmine DUPONT | B179: SVT | C179: 12.00 | D179: 2023-10-12 | E179: 1 | F179: 0.4 | G179: 4.80 | H179: 1254.86
A180: Luc DUPONT | B180: Anglais | C180: 13.20 | D180: 2023-10-13 | E180: =IF(AND(MONTH(D180)>=4,MONTH(D180)<7),3,IF(AND(MONTH(D180)>=1,MONTH(D180)<4),2,1)) -> 1 | F180: 0.6 | G180: 7.92 | H180: 1262.78
A181: Luc DUPONT | B181: Geo | C181: 14.30 | D181: 2023-10-13 | E181: 1 | F181: 0.5 | G181: 7.15 | H181: 1269.93
A182: Nora DUPONT | B182: Hist | C182: 9.90 | D182: 2023-10-13 | E182: 1 | F182: 1.0 | G182: 9.90 | H182: 1279.83
A183: Nora DUPONT | B183: Physique | C183: 5.50 | D183: 2023-10-13 | E183: 1 | F183: 0.7 | G183: 3.85 | H183: 1283.68
A184: Pierre DUPONT | B184: SVT | C184: 6.60 | D184: 2023-10-13 | E184: 1 | F184: 0.2 | G184: 1.32 | H184: 1285.00
A185: Simon DUPONT | B185: SVT | C185: 11.00 | D185: 2023-10-13 | E185: 1 | F185: 0.5 | G185: 5.50 | H185: 1290.50
A186: Yasmine DUPONT | B186: Anglais | C186: 17.00 | D186: 2023-10-13 | E186: 1 | F186: 0.6 | G186: 10.20 | H186: 1300.70
A187: Yasmine DUPONT | B187: Geo | C187: 15.00 | D187: 2023-10-13 | E187: 1 | F187: 0.5 | G187: 7.50 | H187: 1308.20
A188: Luc DUPONT | B188: Français | C188: 11.00 | D188: 2023-10-14 | E188: =IF(AND(MONTH(D188)>=4,MONTH(D188)<7),3,IF(AND(MONTH(D188)>=1,MONTH(D188)<4),2,1)) -> 1 | F188: 0.1 | G188: 1.10 | H188: 1309.30
A189: Luc DUPONT | B189: Hist | C189: 16.50 | D189: 2023-10-14 | E189: =IF(AND(MONTH(D189)>=4,MONTH(D189)<7),3,IF(AND(MONTH(D189)>=1,MONTH(D189)<4),2,1)) -> 1 | F189: 0.5 | G189: 8.25 | H189: 1317.55
A190: Pierre DUPONT | B190: Hist | C190: 5.50 | D190: 2023-10-14 | E190: =IF(AND(MONTH(D190)>=4,MONTH(D190)<7),3,IF(AND(MONTH(D190)>=1,MONTH(D190)<4),2,1)) -> 1 | F190: 0.1 | G190: 0.55 | H190: 1318.10
A191: Sandrine DUPONT | B191: Chimie | C191: 12.00 | D191: 2023-10-14 | E191: =IF(AND(MONTH(D191)>=4,MONTH(D191)<7),3,IF(AND(MONTH(D191)>=1,MONTH(D191)<4),2,1)) -> 1 | F191: 0.6 | G191: 7.20 | H191: 1325.30
A192: Sandrine DUPONT | B192: Français | C192: 19.80 | D192: 2023-10-14 | E192: =IF(AND(MONTH(D192)>=4,MONTH(D192)<7),3,IF(AND(MONTH(D192)>=1,MONTH(D192)<4),2,1)) -> 1 | F192: 0.1 | G192: 1.98 | H192: 1327.28
A193: Yasmine DUPONT | B193: Français | C193: 15.00 | D193: 2023-10-14 | E193: 1 | F193: 0.1 | G193: 1.50 | H193: 1328.78
A194: Yasmine DUPONT | B194: Hist | C194: 14.00 | D194: 2023-10-14 | E194: 1 | F194: 0.5 | G194: =F194*C194 -> 7.00 | H194: 1335.78
A195: Luc DUPONT | B195: Français | C195: 8.80 | D195: 2023-10-15 | E195: =IF(AND(MONTH(D195)>=4,MONTH(D195)<7),3,IF(AND(MONTH(D195)>=1,MONTH(D195)<4),2,1)) -> 1 | F195: 0.5 | G195: 4.40 | H195: 1340.18
A196: Luc DUPONT | B196: Hist | C196: 20.00 | D196: 2023-10-15 | E196: =IF(AND(MONTH(D196)>=4,MONTH(D196)<7),3,IF(AND(MONTH(D196)>=1,MONTH(D196)<4),2,1)) -> 1 | F196: 0.7 | G196: 14.00 | H196: =G196+H195 -> 1354.18
A197: Luc DUPONT | B197: Sport | C197: 7.70 | D197: 2023-10-15 | E197: =IF(AND(MONTH(D197)>=4,MONTH(D197)<7),3,IF(AND(MONTH(D197)>=1,MONTH(D197)<4),2,1)) -> 1 | F197: 1.0 | G197: 7.70 | H197: 1361.88
A198: Sandrine DUPONT | B198: Chimie | C198: 10.50 | D198: 2023-10-15 | E198: =IF(AND(MONTH(D198)>=4,MONTH(D198)<7),3,IF(AND(MONTH(D198)>=1,MONTH(D198)<4),2,1)) -> 1 | F198: 1.0 | G198: 10.50 | H198: 1372.38
A199: Yasmine DUPONT | B199: Français | C199: 15.00 | D199: 2023-10-15 | E199: 1 | F199: 0.5 | G199: 7.50 | H199: 1379.88
A200: Yasmine DUPONT | B200: Hist | C200: 12.00 | D200: 2023-10-15 | E200: 1 | F200: 0.7 | G200: 8.40 | H200: 1388.28
... 1121 more rows
